[Event "FIDE WY-U16 Olympiad 2022"]
[Site "Nakhchivan"]
[Date "2022.10.02"]
[Round "1.18"]
[White "Zhakshylykov, Erzhan"]
[Black "Li, Yiheng"]
[Result "1-0"]
[ECO "E63"]
[WhiteElo "2293"]
[BlackElo "1766"]
[Annotator "TA"]
[PlyCount "79"]
[EventDate "2022.10.02"]
[EventType "team-tourn"]
[EventCountry "AZE"]
[SourceTitle "playchess.com"]
[Source "ChessBase"]
[SourceQuality "1"]
[WhiteTeam "Kyrgyzstan"]
[BlackTeam "Hong Kong"]
[WhiteTeamCountry "KGZ"]
[BlackTeamCountry "HKG"]
[TimeControl "40/5400+30:1800+30"]

{[%evp 16,79,24,24,155,158,152,152,156,151,161,156,203,200,207,232,258,250,280,269,349,331,331,313,399,393,443,433,564,542,614,597,633,464,464,452,441,379,569,569,545,446,561,558,621,558,846,837,785,721,1024,1033,1237,1187,1102,1417,1062,1012,1276,1212,1864,1838,1626,1411,1312,1137]} 1. d4 {[%emt 0:00:04]} Nf6 {[%emt 0:00:10]} 2. c4 {[%emt 0:00:16]} g6 {[%emt 0:00:08]} 3. Nf3 {[%emt 0:00:10]} Bg7 {[%emt 0:00:10]} 4. g3 {[%emt 0:00:07]} O-O {[%emt 0:00:10]} 5. Bg2 {[%emt 0:00:06]} d6 {[%emt 0:00:08]} 6. O-O {[%emt 0:00:27]} Nc6 {[%emt 0:00:08]} 7. Nc3 {[%emt 0:00:10]} a6 {[%emt 0:00:06]} 8. d5 {[%emt 0:02:06] 8.Bf4 is setting a new trend.} Na5 {[%emt 0:00:09]} 9. b3 {[%emt 0:00:06]} Ne4 {[%emt 0:04:32] [#] E63: King's Indian: Fianchetto: Panno Variation with 7...a6.} 10. Nxe4 $1 $16 {[%emt 0:00:19][%cal Bc3e4,Be4d2,Bd2c4][%mdl 32] Threatens to win with Rb1.} Bxa1 {[%emt 0:00:08] [#]} 11. Bd2 $1 {[%emt 0:00:16][%csl LRa1,LRa5] White is more active.} Nxc4 {[%emt 0:02:20] White is clearly better.} 12. Qxa1 {[%emt 0:03:19]} Nxd2 {[%emt 0:00:09]} 13. Nexd2 {[%emt 0:00:06] [#]} Bd7 $146 {[%emt 0:04:11]} (13... e6 $16 14. dxe6 fxe6) ({Predecessor:} 13... e5 14. dxe6 fxe6 15. Qc3 c6 16. Ne4 d5 17. Nc5 b6 18. Nd3 c5 19. h4 Qf6 20. Qxf6 Rxf6 {1-0 (40) Franciskovic,B (2310)-Schaffert,W (2027) Pula 2014}) 14. Nd4 $18 {[%emt 0:11:29]} a5 {[%emt 0:02:35]} 15. a4 $40 {[%emt 0:08:18][%mdl 128] Black is in trouble.} Rc8 {[%emt 0:05:02]} 16. Rc1 {[%emt 0:02:06] Against c6} f6 {[%emt 0:05:36]} 17. h4 {[%emt 0:04:09]} Qe8 {[%emt 0:03:13]} 18. Nc4 {[%emt 0:01:41]} b6 {[%emt 0:04:22]} 19. Qc3 {[%emt 0:05:43]} Rf7 {[%emt 0:06:59]} 20. Na3 {[%emt 0:04:08]} Rg7 {[%emt 0:02:16]} 21. Nab5 {[%emt 0:03:29]} Bxb5 {[%emt 0:01:04]} 22. axb5 {[%emt 0:01:07]} Qd7 {[%emt 0:03:40]} 23. Ne6 {[%emt 0:04:57]} Rf7 {[%emt 0:00:21]} 24. Qc6 {[%emt 0:00:23]} Qxc6 {[%emt 0:00:51]} 25. Rxc6 {[%emt 0:00:05]} ({Weaker is} 25. bxc6 f5 26. e4 fxe4 $18) 25... f5 {[%emt 0:01:16]} 26. Nxc7 {[%emt 0:01:25]} Rb8 {[%emt 0:03:38]} (26... Rff8 $142 27. Ne6 Rfe8 28. Rxb6 Rb8) 27. Ne6 {[%emt 0:00:30] White is clearly winning.} Rf6 {[%emt 0:01:05]} 28. Rc7 {[%emt 0:00:27]} Rf7 {[%emt 0:00:43]} 29. e4 {[%emt 0:02:33]} fxe4 {[%emt 0:02:10]} 30. Bxe4 {[%emt 0:00:12]} Kh8 {[%emt 0:04:21]} 31. Kg2 {[%emt 0:02:05]} Kg8 {[%emt 0:01:39]} 32. f4 {[%emt 0:01:58]} Kh8 {[%emt 0:00:24]} 33. g4 {[%emt 0:00:41][%cal Bg3g4,Bg4g5][%mdl 32]} Kg8 {[%emt 0:00:36]} 34. Kg3 {[%emt 0:00:25]} Kh8 {[%emt 0:00:20]} 35. g5 {[%emt 0:00:48]} Kg8 {[%emt 0:00:50]} 36. Bf3 {[%emt 0:01:51]} Kh8 {[%emt 0:00:26]} 37. h5 {[%emt 0:00:32]} Kg8 {[%emt 0:02:13]} 38. hxg6 {[%emt 0:03:42]} hxg6 {[%emt 0:00:06]} 39. Be4 {[%emt 0:00:05]} Kh7 {[%emt 0:00:22]} 40. Rc1 {[%emt 0:00:22] White took control after the opening.  Weighted Error Value: White=0.24 (precise) /Black=0.61} 1-0

[Event "FIDE WY-U16 Olympiad 2022"]
[Site "Nakhchivan"]
[Date "2022.10.02"]
[Round "1.18"]
[White "Pal, Rohan"]
[Black "Celik, Hasan Huseyin"]
[Result "0-1"]
[ECO "C15"]
[WhiteElo "1913"]
[BlackElo "2323"]
[Annotator "TA"]
[PlyCount "98"]
[EventDate "2022.10.02"]
[EventType "team-tourn"]
[EventCountry "AZE"]
[SourceTitle "playchess.com"]
[Source "ChessBase"]
[SourceQuality "1"]
[WhiteTeam "England"]
[BlackTeam "Turkey"]
[WhiteTeamCountry "ENG"]
[BlackTeamCountry "TUR"]
[TimeControl "40/5400+30:1800+30"]

{[%evp 13,98,-12,0,0,0,0,10,16,0,10,7,0,1,-8,18,18,19,0,0,0,0,-51,0,0,-8,-25,-3,-7,-2,-16,-17,-28,-35,-52,-55,-45,-64,-59,-64,-64,-74,-66,-63,-80,-83,-65,-40,-33,-40,-37,-33,-33,-33,-42,-33,-33,-33,-324,-33,-115,-76,-130,-139,-225,-221,-5431,-5322,-29976,-29977,-29977,-29971,-29971,-29972,-29971,-29972,-29971,-29971,-29966,-12448,-5971,-4943,-29979,-29980,-29980,-29980,-29984,-29984]} 1. e4 {[%emt 0:00:12]} e6 {[%emt 0:00:10]} 2. d4 {[%emt 0:00:11]} d5 {[%emt 0:00:05]} 3. Nc3 {[%emt 0:00:03]} Bb4 {[%emt 0:00:18]} 4. Bd3 {[%emt 0:00:30][%cal Bf1d3,Bd3e4,Be4f3][%mdl 32]} dxe4 {[%emt 0:00:20]} 5. Bxe4 {[%emt 0:00:06]} Nf6 {[%emt 0:00:09]} 6. Bf3 {[%emt 0:00:05]} O-O {[%emt 0:00:44]} 7. Nge2 {[%emt 0:00:08]} c5 {[%emt 0:02:02]} 8. Be3 {[%emt 0:05:55] C15: French: 3 Nc3 Bb4: Unusual White 4th moves.} cxd4 {[%emt 0:03:35]} 9. Qxd4 {[%emt 0:03:54]} Qxd4 {[%emt 0:00:22]} 10. Bxd4 {[%emt 0:00:37] The position is equal.} Nc6 {[%emt 0:01:12]} 11. Bxf6 {[%emt 0:02:57]} gxf6 {[%emt 0:00:01] [#]} 12. Bxc6 $146 {[%emt 0:07:18]} ({Predecessor:} 12. O-O e5 13. a3 Bxc3 14. Nxc3 Be6 15. Ne4 f5 16. Nc5 Bc4 17. Rfe1 e4 18. Be2 Bxe2 19. Rxe2 {1-0 (78) Berger,J (1707)-Unbehend,M (1556) Playchess.com INT 2020}) 12... bxc6 {[%emt 0:00:02]} 13. O-O-O {[%emt 0:01:35]} e5 {[%emt 0:05:22]} 14. a3 {[%emt 0:05:07]} Be7 {[%emt 0:00:11]} 15. Rhe1 {[%emt 0:05:02]} Be6 {[%emt 0:04:26]} 16. g4 {[%emt 0:09:12]} h5 {[%emt 0:04:49]} 17. h3 {[%emt 0:02:59]} ({White should play} 17. gxh5 $11 Kh7 18. Ng3) 17... hxg4 {[%emt 0:02:43]} 18. hxg4 {[%emt 0:00:03]} Rad8 {[%emt 0:00:17]} 19. f3 {[%emt 0:09:52]} Kg7 {[%emt 0:04:29]} 20. Ng3 {[%emt 0:03:01]} Kg6 {[%emt 0:00:58]} 21. Rxd8 {[%emt 0:12:33]} Rxd8 {[%emt 0:00:05]} 22. Rh1 {[%emt 0:00:54]} Bc5 {[%emt 0:20:13]} 23. Nce4 {[%emt 0:06:36]} Be3+ {[%emt 0:00:17]} 24. Kb1 {[%emt 0:00:02]} f5 {[%emt 0:03:04]} 25. gxf5+ {[%emt 0:00:19]} Bxf5 {[%emt 0:00:02]} 26. Nxf5 {[%emt 0:06:08]} Kxf5 $15 {[%emt 0:00:10][%mdl 4096] Endgame KRB-KRN} 27. Rh4 {[%emt 0:01:54]} Ke6 {[%emt 0:07:10] Black is more active.} 28. b4 {[%emt 0:03:14]} Rd1+ {[%emt 0:00:26]} 29. Ka2 {[%emt 0:00:13]} Rf1 {[%emt 0:00:31] [#] White must now prevent ...f5.} (29... f5 $5 {[%cal Rf5e4]} 30. Nc3 Re1 $17) 30. Rh3 {[%emt 0:00:54]} f5 {[%emt 0:01:32]} 31. Nc3 {[%emt 0:00:15]} e4 {[%emt 0:01:25]} 32. fxe4 {[%emt 0:02:54]} f4 {[%emt 0:00:01]} 33. Rh6+ {[%emt 0:00:52]} Ke5 {[%emt 0:11:37] And now ...f3 would win.} 34. Rh5+ {[%emt 0:03:20]} Kd4 {[%emt 0:01:50]} 35. Ne2+ {[%emt 0:01:13][%mdl 8192] [#]} ({White must play} 35. Kb3 $15 Bd2 36. Rh7 Bxc3 37. Rd7+ Kxe4 38. Kxc3) 35... Kxe4 $2 {[%emt 0:00:27]} (35... Kc4 $1 $19 {...f3 is the strong threat.} 36. e5 Rf2 37. Nxf4 Rxf4) 36. Rh6 {[%emt 0:01:47]} (36. Nc3+ $15 Kf3 37. Kb3) 36... c5 {[%emt 0:03:19]} 37. bxc5 {[%emt 0:00:55]} (37. Kb3 $142) 37... Bxc5 $17 {[%emt 0:01:01]} 38. Nxf4 {[%emt 0:03:33]} (38. Kb3 $17) 38... Rxf4 {[%emt 0:00:09] KRB-KR} 39. Ra6 $2 {[%emt 0:02:02]} (39. Kb3) 39... Kd5 $19 {[%emt 0:00:55]} 40. Kb3 {[%emt 0:00:31]} Bb6 {[%emt 0:00:50]} 41. c3 {[%emt 0:30:44]} Kc6 {[%emt 0:30:45]} 42. c4 {[%emt 0:00:27]} Kc5 {[%emt 0:00:24]} 43. Ra4 {[%emt 0:00:44]} a5 {[%emt 0:00:06]} 44. Kc3 {[%emt 0:00:07]} Rf3+ {[%emt 0:00:23]} 45. Kc2 {[%emt 0:00:08]} Rf2+ {[%emt 0:00:05]} (45... Bd8 $142 46. Kb2 Kb6 47. Kb1 Rf1+ 48. Kc2 Rf2+ 49. Kd3 Ra2 50. Ke4 Be7 51. c5+ Kb5 52. Rd4 Bxc5 53. Rd8 Rxa3 54. Rg8 Re3+ 55. Kd5 a4 56. Ra8 Bb6 57. Rh8 Re2 58. Rh1 a3 59. Rb1+ Rb2 60. Ra1 Rd2+ 61. Ke4 a2 62. Rh1 Bd4 63. Rf1 a1=Q 64. Rxa1 Bxa1 65. Kf3 Rd3+ 66. Kf4 Kc4 67. Ke4 Bh8 68. Kf4 Kd5 69. Kg4 Ke4 70. Kg5 Rg3+ 71. Kh4 Be5 72. Kh5 Kf5 73. Kh4 Rg2 74. Kh5 Rh2#) 46. Kc3 {[%emt 0:00:17]} Rf1 {[%emt 0:00:15] ( -> ...Rc1+)} 47. Kb3 {[%emt 0:00:15]} Rc1 {[%emt 0:00:06] Black mates.} 48. Kb2 {[%emt 0:00:05]} Rxc4 {[%emt 0:00:12]} 49. Rxc4+ {[%emt 0:00:09]} Kxc4 {[%emt 0:00:01] Weighted Error Value: White=0.60/Black=0.16 (very precise)} 0-1

[Event "FIDE WY-U16 Olympiad 2022"]
[Site "Nakhchivan"]
[Date "2022.10.02"]
[Round "1.19"]
[White "Ozkan, Taha"]
[Black "Subramanian, Anusha"]
[Result "1-0"]
[ECO "D17"]
[WhiteElo "2299"]
[BlackElo "1840"]
[Annotator "TA"]
[PlyCount "75"]
[EventDate "2022.10.02"]
[EventType "team-tourn"]
[EventCountry "AZE"]
[SourceTitle "playchess.com"]
[Source "ChessBase"]
[SourceQuality "1"]
[WhiteTeam "Turkey"]
[BlackTeam "England"]
[WhiteTeamCountry "TUR"]
[BlackTeamCountry "ENG"]
[TimeControl "40/5400+30:1800+30"]

{[%evp 13,74,-46,-9,-70,-39,-27,5,-154,-166,-145,0,-74,-81,-79,-87,-100,-68,-223,-176,-229,-227,-223,-220,-433,-438,-441,-229,-236,-179,-761,-678,-750,-754,-712,-616,-1291,-1283,-1172,-583,-1072,-221,-916,-591,-583,-565,-1064,-1045,-29991,1182,1130,964,629,1581,1562,1436,956,1041,875,29989,29990,29995,29996,29999]} 1. d4 {[%emt 0:00:05]} d5 {[%emt 0:00:06]} 2. c4 {[%emt 0:00:29]} c6 {[%emt 0:00:08]} 3. Nf3 {[%emt 0:00:05]} Nf6 {[%emt 0:00:06]} 4. Nc3 {[%emt 0:00:07]} dxc4 {[%emt 0:00:07]} 5. a4 {[%emt 0:00:14]} Bf5 {[%emt 0:00:07]} 6. Ne5 {[%emt 0:01:43]} e6 {[%emt 0:00:36]} 7. Nxc4 {[%emt 0:02:47]} Bb4 {[%emt 0:01:56]} 8. a5 {[%emt 0:05:22] D17: Slav Defence: 5 a4 Bf5: Lines with 6 Nh4 and 6 Ne5.} (8. Bg5 $11) 8... Ne4 {[%emt 0:08:25] [#]} 9. Qb3 $146 {[%emt 0:16:50]} ({Predecessor:} 9. Bd2 Qxd4 10. e3 Qc5 11. Nxe4 Bxe4 12. Rc1 Ke7 13. Bc3 Nd7 14. Qg4 Nf6 15. Qg3 Rhd8 {0-1 (38) Kutlyarov,A (2113)-Melnikov,S (2063) Ufa 2007}) 9... c5 {[%emt 0:25:49]} ({Much less strong is} 9... Qxd4 10. Be3 (10. Qxb4 Na6 $15) 10... Bxc3+ 11. bxc3 Qxc3+ 12. Qxc3 Nxc3 13. Nd6+ (13. Bd4 Nb5 $15) 13... Kf8 14. f3 $11) (9... Qh4 $2 10. g3 Qe7 11. f3 $16) (9... Na6 $5 {[%cal Rd8d4]} 10. Be3 Nd6 $11) 10. dxc5 $2 {[%emt 0:08:01]} (10. Bf4 $11 O-O 11. f3) 10... Nc6 $17 {[%emt 0:02:09][%cal Oc6d4]} 11. Be3 {[%emt 0:10:48][%cal Og2g4] Strongly threatening g4!} Qe7 {[%emt 0:02:56]} ({Black should try} 11... O-O $17 {Hoping for ...e5.} 12. Rd1 Qf6) 12. Nd6+ {[%emt 0:14:45]} (12. g4 $1 $11 {keeps the balance.} Bg6 13. a6 Nxc5 14. axb7) 12... Nxd6 {[%emt 0:00:28]} 13. cxd6 {[%emt 0:00:05]} Qxd6 {[%emt 0:01:21]} 14. a6 {[%emt 0:03:36]} O-O $36 {[%emt 0:09:20][%mdl 2048] Black has some pressure.} 15. Rd1 $2 {[%emt 0:15:12]} ({Better is} 15. g3 $15) 15... Qc7 {[%emt 0:05:08]} 16. Qc4 {[%emt 0:02:25]} (16. g3 $142 Be4 17. f3) 16... Rfd8 $19 {[%emt 0:07:19]} 17. Rxd8+ {[%emt 0:10:25]} Rxd8 {[%emt 0:00:11]} 18. f4 $2 {[%emt 0:00:41]} (18. f3 {was forced.}) 18... b5 {[%emt 0:10:29]} 19. Qxb5 {[%emt 0:01:39]} Nd4 {[%emt 0:01:26]} 20. Bxd4 {[%emt 0:01:01]} Rxd4 {[%emt 0:00:44]} 21. Qe8+ $2 {[%emt 0:03:29]} (21. g3) 21... Bf8 {[%emt 0:00:02] This bishop pair is nice.} 22. e3 {[%emt 0:00:04]} Rb4 {[%emt 0:02:07]} 23. Nd1 {[%emt 0:01:25]} Qc1 {[%emt 0:02:51] White must now prevent ...Rxb2.} 24. Be2 {[%emt 0:00:39]} Rxb2 {[%emt 0:00:45]} 25. Qd8 {[%emt 0:00:14] [#] Inhibits Qd2+.} Be4 {[%emt 0:02:47]} (25... Rxe2+ $142 $1 {[%mdl 512]} 26. Kxe2 Qc2+ 27. Kf1 Bd3+ 28. Qxd3 Qxd3+ 29. Kf2 Bc5) 26. Qd4 {[%emt 0:00:48]} Rb4 {[%emt 0:13:21]} (26... Bb4+ 27. Kf1 Rxe2 $1 {[%mdl 512]} 28. Qd8+ Bf8 29. Kxe2 Qc2+ 30. Ke1 Bd3 31. Qxd3 Qxd3) 27. Qxa7 $2 {[%emt 0:00:12]} (27. Qc3 Qxc3+ 28. Nxc3 Bxg2 29. Rg1) 27... Bxg2 {[%emt 0:01:05]} 28. Rg1 {[%emt 0:00:10]} Bd5 {[%emt 0:01:27] ...Qc6 is the strong threat.} 29. Qd7 {[%emt 0:01:01]} Rb2 {[%emt 0:00:53] ( -> ...Qd2+)} 30. Kf2 {[%emt 0:00:33] [#]} Qc2 $4 {[%emt 0:00:23][%mdl 8192]} (30... Rxe2+ $1 {[%mdl 512]} 31. Kg3 Qc2 32. Qxd5 exd5 33. a7 Qg6+ 34. Kf3 Qh5+ 35. Rg4 Rxh2 36. Nf2 f5 37. a8=Q fxg4+ 38. Ke2 g3+ 39. Kd3 gxf2 40. Kd4 f1=Q 41. Qxd5+ Qxd5+ 42. Kxd5 Rd2+ 43. Kc6 Qa6+ 44. Kc7 Rc2+ 45. Kd8 Qc8#) 31. Nxb2 $18 {[%emt 0:00:16]} Qxb2 {[%emt 0:00:22]} 32. Qb5 {[%emt 0:00:17]} Qa2 {[%emt 0:00:32]} 33. Rc1 {[%emt 0:00:36] aiming for Rc8.} g6 {[%emt 0:00:58]} 34. Qb8 {[%emt 0:00:42] And now Rc8 would win.} Kg7 {[%emt 0:00:27]} 35. Qe5+ {[%emt 0:00:24]} f6 {[%emt 0:00:34]} 36. Rc7+ {[%emt 0:00:15] White mates.} Kh6 {[%emt 0:00:18]} 37. Qxf6 {[%emt 0:00:16][%cal Rf6f8]} Qa5 {[%emt 0:00:44]} 38. Qg5# {[%emt 0:00:09] Weighted Error Value: White=1.75/Black=1.04} 1-0

[Event "FIDE WY-U16 Olympiad 2022"]
[Site "Nakhchivan"]
[Date "2022.10.02"]
[Round "1.19"]
[White "Han, Xuqian Ben"]
[Black "Iunusov, Nuriddin"]
[Result "0-1"]
[ECO "B56"]
[WhiteElo "1610"]
[BlackElo "1940"]
[Annotator "TA"]
[PlyCount "56"]
[EventDate "2022.10.02"]
[EventType "team-tourn"]
[EventCountry "AZE"]
[SourceTitle "playchess.com"]
[Source "ChessBase"]
[SourceQuality "1"]
[WhiteTeam "Hong Kong"]
[BlackTeam "Kyrgyzstan"]
[WhiteTeamCountry "HKG"]
[BlackTeamCountry "KGZ"]
[TimeControl "40/5400+30:1800+30"]

{[%evp 14,56,58,53,80,73,89,88,92,71,98,31,60,0,19,-41,-43,-22,-21,-85,-48,-52,-53,-38,-67,-49,-64,-108,-106,-154,-127,-127,-120,-663,-666,-29992,-1068,-1066,-1065,-1049,-1029,-29992,-29993,-29993,-29992]} 1. e4 {[%emt 0:00:02]} c5 {[%emt 0:00:43]} 2. Nf3 {[%emt 0:00:23]} d6 {[%emt 0:00:18]} 3. d4 {[%emt 0:00:03]} cxd4 {[%emt 0:00:31]} 4. Nxd4 {[%emt 0:00:09]} Nf6 {[%emt 0:00:38]} 5. Nc3 {[%emt 0:00:06]} e5 {[%emt 0:02:44]} 6. Bb5+ {[%emt 0:07:17]} Bd7 {[%emt 0:07:51]} 7. Bxd7+ {[%emt 0:01:20]} Qxd7 {[%emt 0:01:08]} 8. Nde2 {[%emt 0:05:51]} Be7 {[%emt 0:09:03] B56: Classical Sicilian: Unusual Lines.} 9. Bg5 {[%emt 0:02:06]} O-O {[%emt 0:08:40]} 10. Ng3 {[%emt 0:04:51]} g6 {[%emt 0:27:11] White is better.} 11. Qd2 {[%emt 0:03:16]} Nc6 {[%emt 0:08:47][%cal Bb8c6,Bc6e7,Be7f5][%mdl 32]} 12. O-O {[%emt 0:01:12] [#]} (12. O-O-O $16) 12... Rac8 $146 {[%emt 0:02:05]} ({Predecessor:} 12... Nd4 13. f4 Qd8 14. Rad1 Rc8 15. Kh1 Rc6 16. h3 Kh8 17. Qf2 Kg7 18. Qe3 Ng8 19. Bxe7 Nxe7 {½-½ (40) Mezera,L (2262)-Carnevale,R (2154) ICCF email 2009}) 13. Bh6 {[%emt 0:01:20]} Rfd8 {[%emt 0:01:52]} 14. Nf5 {[%emt 0:02:32]} d5 $15 {[%emt 0:06:20]} 15. Nxe7+ {[%emt 0:06:25]} Nxe7 {[%emt 0:00:31]} 16. Qg5 {[%emt 0:00:46]} (16. f3 $11) 16... Nxe4 {[%emt 0:08:00]} 17. Nxe4 {[%emt 0:05:50]} dxe4 {[%emt 0:00:01]} 18. Qxe5 {[%emt 0:05:16][%csl Gh6][%cal Re5g7] [#]} Nf5 {[%emt 0:00:06] Prevents Qg7+.} 19. Bg5 {[%emt 0:03:21]} Re8 {[%emt 0:00:09]} 20. Qa5 {[%emt 0:00:57]} b6 {[%emt 0:03:16]} 21. Qa6 {[%emt 0:01:35]} (21. Qd2 $142 Qxd2 22. Bxd2) 21... Rxc2 {[%emt 0:02:17] [#] Hoping for ...e3.} 22. Rad1 {[%emt 0:00:13]} Qc6 $36 {[%emt 0:02:36][%mdl 2048] ...e3 is the strong threat. Black is really pushing. Black has more active pieces.} 23. Qxa7 $2 {[%emt 0:03:33][%mdl 8192] Loses the game.} (23. Rc1 $17) 23... e3 $19 {[%emt 0:00:30][%cal Be4e3,Be3f2][%mdl 32] ( -> ...Rxf2)} 24. Rb1 {[%emt 0:04:54]} Ra8 {[%emt 0:01:02]} (24... Rxf2 $142 25. Qxf7+ Kxf7 26. Rxf2 exf2+ 27. Kxf2 Qc2+ 28. Kg1 Qxb1+ 29. Bc1 Qxc1+ 30. Kf2 Qf4+ 31. Kg1 Re1#) 25. Qxa8+ {[%emt 0:02:09]} Qxa8 {[%emt 0:00:10]} 26. Rbc1 {[%emt 0:01:27]} exf2+ {[%emt 0:00:36]} 27. Kh1 {[%emt 0:00:07]} Rxc1 {[%emt 0:00:28]} 28. Rxc1 {[%emt 0:00:35]} Qa6 {[%emt 0:00:05] Weighted Error Value: White=0.94/Black=0.37} 0-1

[Event "FIDE WY-U16 Olympiad 2022"]
[Site "Nakhchivan"]
[Date "2022.10.02"]
[Round "1.20"]
[White "Dasgupta, Avyukt"]
[Black "Mustu, Hatice Asli"]
[Result "1-0"]
[ECO "A45"]
[WhiteElo "1741"]
[BlackElo "1826"]
[Annotator "NA RC COMBH"]
[PlyCount "115"]
[EventDate "2022.10.02"]
[EventType "team-tourn"]
[EventCountry "AZE"]
[SourceTitle "playchess.com"]
[Source "ChessBase"]
[SourceQuality "1"]
[WhiteTeam "England"]
[BlackTeam "Turkey"]
[WhiteTeamCountry "ENG"]
[BlackTeamCountry "TUR"]
[TimeControl "40/5400+30:1800+30"]

1. d4 {[%emt 0:00:05]} Nf6 {[%emt 0:00:06]} 2. c3 {[%emt 0:00:09]} d5 {[%emt 0:00:21]} 3. Bf4 {[%emt 0:00:08]} e6 {[%emt 0:00:13]} 4. e3 {[%emt 0:00:16]} Bd6 {[%emt 0:00:06]} 5. Bxd6 {[%emt 0:00:27]} Qxd6 {[%emt 0:00:20]} 6. Nf3 {[%emt 0:00:10]} Nbd7 {[%emt 0:01:15]} 7. Nbd2 {[%emt 0:00:41]} b6 {[%emt 0:01:54]} 8. Bd3 {[%emt 0:04:03]} Bb7 {[%emt 0:03:32]} 9. O-O {[%emt 0:13:08]} Ne4 {[%emt 0:06:43]} 10. Qc2 {[%emt 0:06:45]} f5 {[%emt 0:05:10]} 11. Ne1 {[%emt 0:11:37]} O-O {[%emt 0:05:07]} 12. f4 {[%emt 0:01:47]} Ndf6 {[%emt 0:09:04]} 13. Nef3 {[%emt 0:03:20]} Ng4 {[%emt 0:12:23]} 14. Rae1 {[%emt 0:02:20]} Qe7 {[%emt 0:10:27]} 15. h3 {[%emt 0:12:36]} Nh6 {[%emt 0:06:23]} 16. Ne5 {[%emt 0:03:35]} g5 {[%emt 0:04:52]} 17. Bxe4 {[%emt 0:05:19]} dxe4 {[%emt 0:06:49]} 18. Qd1 {[%emt 0:12:11]} gxf4 {[%emt 0:08:17]} 19. Rxf4 {[%emt 0:02:05]} Qg5 {[%emt 0:01:41]} 20. Qa4 {[%emt 0:08:12]} Rfd8 {[%emt 0:05:48]} 21. Qc4 {[%emt 0:02:39]} Qe7 {[%emt 0:01:14]} 22. Qe2 {[%emt 0:01:14]} Nf7 {[%emt 0:02:00]} 23. Ndc4 {[%emt 0:01:40]} Nd6 {[%emt 0:05:04]} 24. Qh5 {[%emt 0:01:29]} Qg7 {[%emt 0:01:46]} 25. Kh2 {[%emt 0:02:05]} Ba6 {[%emt 0:00:32]} 26. Nd2 {[%emt 0:00:10]} Kh8 {[%emt 0:01:28]} 27. g4 {[%emt 0:03:26]} Rg8 {[%emt 0:00:22]} 28. Rg1 {[%emt 0:01:45]} Raf8 {[%emt 0:00:49]} 29. g5 {[%emt 0:00:14]} Nf7 {[%emt 0:00:15]} 30. Nxf7+ {[%emt 0:00:15]} Rxf7 {[%emt 0:00:07]} 31. Nxe4 {[%emt 0:00:43]} Be2 {[%emt 0:00:53]} 32. Qxe2 {[%emt 0:00:41]} fxe4 {[%emt 0:00:01]} 33. Rxe4 {[%emt 0:00:35]} Rgf8 {[%emt 0:01:17]} 34. Rg2 {[%emt 0:00:09]} Rf3 {[%emt 0:00:39]} 35. Qe1 {[%emt 0:01:19]} Qd7 {[%emt 0:00:23]} 36. Qh4 {[%emt 0:00:10]} Qd6+ {[%emt 0:00:24]} 37. Re5 {[%emt 0:00:32]} R8f7 {[%emt 0:00:37]} 38. g6 {[%emt 0:00:24]} Rg7 {[%emt 0:00:17]} 39. Qe4 {[%emt 0:00:46]} Rf5 {[%emt 0:00:08]} 40. Qa8+ {[%emt 0:00:13]} Rf8 {[%emt 0:00:07]} 41. Qe4 {[%emt 0:30:33]} hxg6 {[%emt 0:30:16]} 42. Rxg6 {[%emt 0:00:54]} Rh7 {[%emt 0:01:20]} 43. Rgxe6 {[%emt 0:00:32]} Qd7 {[%emt 0:00:50]} 44. Qg2 {[%emt 0:00:30]} Rg8 {[%emt 0:00:19]} 45. Qf3 {[%emt 0:00:18]} Qg7 {[%emt 0:00:50]} 46. Qf6 {[%emt 0:00:19]} Rf8 {[%emt 0:00:00]} 47. Qxg7+ {[%emt 0:00:00]} Rxg7 {[%emt 0:00:00]} 48. Re8 {[%emt 0:00:00]} Rgf7 {[%emt 0:00:00]} 49. Rxf8+ {[%emt 0:00:00]} Rxf8 {[%emt 0:00:00]} 50. Kg2 {[%emt 0:00:00]} Rf7 {[%emt 0:00:00]} 51. e4 {[%emt 0:00:00]} Kg7 {[%emt 0:00:00]} 52. Rg5+ {[%emt 0:00:00]} Kh6 {[%emt 0:00:00]} 53. Rf5 {[%emt 0:00:00]} Rg7+ {[%emt 0:00:00]} 54. Kf2 {[%emt 0:00:00]} Kg6 {[%emt 0:00:00]} 55. h4 {[%emt 0:00:00]} Kh6 {[%emt 0:00:00]} 56. e5 {[%emt 0:00:00]} Rg4 {[%emt 0:00:00]} 57. e6 {[%emt 0:00:00]} Re4 {[%emt 0:00:00]} 58. Re5 {[%emt 0:00:00]} 1-0